[Event "4th Baskent University Open 2019"]
[Site "Ankara"]
[Date "2019.06.20"]
[Round "6"]
[White "Gunduz, Umut Erdem"]
[Black "Gokcek, Kursat Bugra"]
[Result "1-0"]
[ECO "B15"]
[WhiteElo "2302"]
[BlackElo "2127"]
[Annotator "NA"]
[PlyCount "57"]
[EventDate "2019.06.18"]
[EventType "swiss"]
[EventCountry "TUR"]
[SourceTitle "playchess.com"]
[Source "ChessBase"]
[SourceQuality "1"]
[TimeControl "5400+30"]

1. e4 {[%emt 0:06:30]} c6 {[%emt 0:00:30]} 2. d4 {[%emt 0:00:30]} d5 {[%emt 0:00:00]} 3. Nd2 {[%emt 0:00:30]} dxe4 {[%emt 0:00:00]} 4. Nxe4 {[%emt 0:00:00]} Nf6 {[%emt 0:00:30]} 5. Nxf6+ {[%emt 0:00:00]} exf6 {[%emt 0:00:00]} 6. c3 {[%emt 0:00:00]} Bd6 {[%emt 0:00:00]} 7. Bd3 {[%emt 0:00:00]} O-O {[%emt 0:00:30]} 8. Qc2 {[%emt 0:00:00]} Re8+ {[%emt 0:00:30]} 9. Ne2 {[%emt 0:00:00]} h5 {[%emt 0:00:00]} 10. O-O {[%emt 0:00:30]} Qc7 {[%emt 0:00:00]} 11. h3 {[%emt 0:06:30]} Nd7 {[%emt 0:02:30]} 12. Ng3 {[%emt 0:05:30]} Bxg3 {[%emt 0:03:30]} 13. fxg3 {[%emt 0:00:30]} Nf8 {[%emt 0:00:30]} 14. Bf4 {[%emt 0:01:30]} Qd8 {[%emt 0:01:30]} 15. Rae1 {[%emt 0:01:30]} Rxe1 {[%emt 0:01:30]} 16. Rxe1 {[%emt 0:00:30]} Be6 {[%emt 0:00:00]} 17. Qe2 {[%emt 0:04:30]} Qd5 {[%emt 0:10:00]} 18. Be4 {[%emt 0:06:30]} Qxa2 {[%emt 0:01:30]} 19. Bd6 {[%emt 0:01:30]} Rd8 {[%emt 0:09:30]} 20. Ba3 {[%emt 0:00:30]} Re8 {[%emt 0:34:30]} 21. Qxh5 {[%emt 0:05:30]} g6 {[%emt 0:00:30]} 22. Qh6 {[%emt 0:01:30]} f5 {[%emt 0:01:30]} 23. Bf3 {[%emt 0:01:30]} Nd7 {[%emt 0:05:30]} 24. g4 {[%emt 0:01:30]} fxg4 {[%emt 0:02:30]} 25. hxg4 {[%emt 0:01:30]} Qb3 {[%emt 0:05:30]} 26. Kf2 {[%emt 0:17:30]} Qc2+ {[%emt 0:11:58]} 27. Kg3 {[%emt 0:00:30]} Nf6 {[%emt 0:00:37]} 28. Rh1 {[%emt 0:00:30]} Nh5+ {[%emt 0:00:16]} 29. gxh5 {[%emt 0:00:00]} 1-0

[Event "4th Baskent University Open 2019"]
[Site "Ankara"]
[Date "2019.06.20"]
[Round "6"]
[White "Guseynov, Alihan"]
[Black "Mammadov, Zaur"]
[Result "1/2-1/2"]
[ECO "D30"]
[WhiteElo "2274"]
[BlackElo "2428"]
[Annotator "ChessBase"]
[PlyCount "75"]
[EventDate "2019.06.18"]
[EventType "swiss"]
[EventCountry "TUR"]
[SourceTitle "playchess.com"]
[Source "ChessBase"]
[SourceQuality "1"]
[TimeControl "5400+30"]

1. c4 {[%emt 0:00:30]} e6 {[%emt 0:00:30]} 2. Nf3 {[%emt 0:00:30]} Nf6 {[%emt 0:00:00]} 3. g3 {[%emt 0:00:30]} d5 {[%emt 0:00:00]} 4. Bg2 {[%emt 0:00:30]} c5 {[%emt 0:00:00]} 5. cxd5 {[%emt 0:01:30]} exd5 {[%emt 0:00:00]} 6. d4 {[%emt 0:00:30]} Nc6 {[%emt 0:00:30]} 7. O-O {[%emt 0:01:30]} Be6 {[%emt 0:00:30]} 8. b3 {[%emt 0:05:30]} Be7 {[%emt 0:00:30]} 9. dxc5 {[%emt 0:00:30]} Bxc5 {[%emt 0:00:00]} 10. Bb2 {[%emt 0:00:30]} O-O {[%emt 0:00:00]} 11. Nc3 {[%emt 0:00:30]} Re8 {[%emt 0:02:30]} 12. Rc1 {[%emt 0:03:30]} Qe7 {[%emt 0:04:30]} 13. Nb5 {[%emt 0:05:30]} Ne4 {[%emt 0:05:30]} 14. Nfd4 {[%emt 0:05:30]} Bb6 {[%emt 0:13:30]} 15. Nxc6 {[%emt 0:16:30]} bxc6 {[%emt 0:00:30]} 16. Rxc6 {[%emt 0:00:30]} Nxf2 {[%emt 0:07:30]} 17. Rxf2 {[%emt 0:01:30]} Bxf2+ {[%emt 0:00:00]} 18. Kxf2 {[%emt 0:00:00]} Bd7 {[%emt 0:00:00]} 19. Qd4 {[%emt 0:18:00]} Qxe2+ {[%emt 0:02:30]} 20. Kg1 {[%emt 0:00:30]} Qe3+ {[%emt 0:13:30]} 21. Qxe3 {[%emt 0:00:30]} Rxe3 {[%emt 0:00:30]} 22. Rc5 {[%emt 0:01:30]} Re2 {[%emt 0:00:00]} 23. Bc3 {[%emt 0:07:30]} Rc8 {[%emt 0:17:00]} 24. Rxc8+ {[%emt 0:02:30]} Bxc8 {[%emt 0:00:00]} 25. Nxa7 {[%emt 0:07:22]} Bd7 {[%emt 0:00:00]} 26. Bf1 {[%emt 0:02:20]} Rc2 {[%emt 0:01:30]} 27. Bd4 {[%emt 0:00:54]} Rd2 {[%emt 0:00:30]} 28. Bc3 {[%emt 0:02:32]} Rc2 {[%emt 0:00:00]} 29. Bd4 {[%emt 0:01:57]} Rd2 {[%emt 0:01:00]} 30. Be3 {[%emt 0:03:10]} Rxa2 {[%emt 0:03:30]} 31. b4 {[%emt 0:01:13]} Ra1 {[%emt 0:02:30]} 32. Kf2 {[%emt 0:00:30]} Ra2+ {[%emt 0:00:30]} 33. Kf3 {[%emt 0:03:46]} Ra3 {[%emt 0:01:30]} 34. Kf2 {[%emt 0:04:07]} Ra2+ {[%emt 0:00:30]} 35. Kg1 {[%emt 0:00:13]} Ra1 {[%emt 0:01:30]} 36. Kf2 {[%emt 0:00:35]} Ra2+ {[%emt 0:00:30]} 37. Kg1 {[%emt 0:00:00]} Ra1 {[%emt 0:00:30]} 38. Kf2 {[%emt 0:00:00]} 1/2-1/2

[Event "4th Baskent University Open 2019"]
[Site "Ankara"]
[Date "2019.06.20"]
[Round "6"]
[White "Ozenir, Ekin Baris"]
[Black "Iskandarov, Misratdin"]
[Result "0-1"]
[ECO "A05"]
[WhiteElo "2250"]
[BlackElo "2502"]
[Annotator "ChessBase"]
[PlyCount "82"]
[EventDate "2019.06.18"]
[EventType "swiss"]
[EventCountry "TUR"]
[SourceTitle "playchess.com"]
[Source "ChessBase"]
[SourceQuality "1"]
[TimeControl "5400+30"]

1. Nf3 {[%emt 0:00:30]} c5 {[%emt 0:00:30]} 2. e3 {[%emt 0:00:00]} Nf6 {[%emt 0:01:30]} 3. b3 {[%emt 0:00:00]} g6 {[%emt 0:00:30]} 4. Bb2 {[%emt 0:00:30]} Bg7 {[%emt 0:00:30]} 5. g3 {[%emt 0:01:30]} O-O {[%emt 0:00:30]} 6. Bg2 {[%emt 0:00:30]} d5 {[%emt 0:00:00]} 7. O-O {[%emt 0:00:00]} Bg4 {[%emt 0:00:00]} 8. h3 {[%emt 0:06:00]} Bf5 {[%emt 0:00:30]} 9. d4 {[%emt 0:04:30]} Ne4 {[%emt 0:01:30]} 10. Ne5 {[%emt 0:15:30]} Nc6 {[%emt 0:02:30]} 11. Nxc6 {[%emt 0:04:30]} bxc6 {[%emt 0:00:30]} 12. Nd2 {[%emt 0:02:30]} Nd6 {[%emt 0:03:30]} 13. c3 {[%emt 0:09:30]} Qa5 {[%emt 0:09:30]} 14. Qc1 {[%emt 0:08:30]} Rac8 {[%emt 0:05:30]} 15. Ba3 {[%emt 0:12:30]} cxd4 {[%emt 0:00:00]} 16. cxd4 {[%emt 0:00:30]} Rfe8 {[%emt 0:00:00]} 17. Rd1 {[%emt 0:07:30]} Nb5 {[%emt 0:00:30]} 18. Bc5 {[%emt 0:01:30]} e5 {[%emt 0:00:00]} 19. g4 {[%emt 0:05:45]} Bd7 {[%emt 0:20:00]} 20. Nf3 {[%emt 0:04:34]} e4 {[%emt 0:00:30]} 21. Qd2 {[%emt 0:02:13]} Qd8 {[%emt 0:04:30]} 22. Nh2 {[%emt 0:00:46]} Qc7 {[%emt 0:03:30]} 23. Nf1 {[%emt 0:05:27]} f5 {[%emt 0:00:30]} 24. gxf5 {[%emt 0:01:56]} Bxf5 {[%emt 0:00:00]} 25. Ng3 {[%emt 0:00:20]} Be6 {[%emt 0:00:00]} 26. Rac1 {[%emt 0:01:42]} Nd6 {[%emt 0:02:30]} 27. Qb4 {[%emt 0:02:50]} Nf7 {[%emt 0:01:30]} 28. Qa4 {[%emt 0:01:32]} Qd7 {[%emt 0:00:00]} 29. Qxa7 {[%emt 0:01:12]} Rc7 {[%emt 0:00:00]} 30. Qb6 {[%emt 0:00:07]} Bxh3 {[%emt 0:02:30]} 31. Qxc7 {[%emt 0:01:02]} Qxc7 {[%emt 0:00:30]} 32. Bxh3 {[%emt 0:00:00]} Ng5 {[%emt 0:00:30]} 33. Bg2 {[%emt 0:00:25]} Qd7 {[%emt 0:01:30]} 34. Kf1 {[%emt 0:00:36]} h5 {[%emt 0:00:30]} 35. Ke1 {[%emt 0:00:30]} h4 {[%emt 0:00:30]} 36. Nf1 {[%emt 0:00:33]} Qg4 {[%emt 0:00:00]} 37. Bh1 {[%emt 0:00:28]} Qg1 {[%emt 0:00:00]} 38. Kd2 {[%emt 0:00:30]} Qxh1 {[%emt 0:00:30]} 39. Kc3 {[%emt 0:00:29]} Qf3 {[%emt 0:00:30]} 40. Rd2 {[%emt 0:00:26]} Ne6 {[%emt 0:00:30]} 41. Bd6 {[%emt 0:00:36]} c5 {[%emt 0:00:00]} 0-1

[Event "4th Baskent University Open 2019"]
[Site "Ankara"]
[Date "2019.06.20"]
[Round "6"]
[White "Kizilkus, Akin"]
[Black "Guliev, Logman"]
[Result "1-0"]
[ECO "E46"]
[WhiteElo "2131"]
[BlackElo "2320"]
[Annotator "ChessBase"]
[PlyCount "59"]
[EventDate "2019.06.18"]
[EventType "swiss"]
[EventCountry "TUR"]
[SourceTitle "playchess.com"]
[Source "ChessBase"]
[SourceQuality "1"]
[TimeControl "5400+30"]

1. d4 {[%emt 0:00:30]} Nf6 {[%emt 0:00:30]} 2. c4 {[%emt 0:00:30]} e6 {[%emt 0:00:30]} 3. Nc3 {[%emt 0:00:00]} Bb4 {[%emt 0:00:00]} 4. e3 {[%emt 0:00:00]} O-O {[%emt 0:00:00]} 5. Nge2 {[%emt 0:00:00]} c5 {[%emt 0:01:30]} 6. a3 {[%emt 0:00:00]} cxd4 {[%emt 0:03:30]} 7. axb4 {[%emt 0:01:30]} dxc3 {[%emt 0:00:30]} 8. Nxc3 {[%emt 0:00:30]} Nc6 {[%emt 0:00:00]} 9. b5 {[%emt 0:00:30]} Ne7 {[%emt 0:02:00]} 10. Be2 {[%emt 0:14:30]} Qc7 {[%emt 0:00:30]} 11. O-O {[%emt 0:05:30]} b6 {[%emt 0:00:30]} 12. e4 {[%emt 0:11:30]} h6 {[%emt 0:04:30]} 13. f4 {[%emt 0:10:30]} Bb7 {[%emt 0:01:30]} 14. Bd3 {[%emt 0:08:30]} Qc5+ {[%emt 0:11:30]} 15. Kh1 {[%emt 0:00:30]} d5 {[%emt 0:02:30]} 16. cxd5 {[%emt 0:05:30]} exd5 {[%emt 0:00:30]} 17. e5 {[%emt 0:02:30]} Ne4 {[%emt 0:00:30]} 18. Bxe4 {[%emt 0:01:30]} dxe4 {[%emt 0:00:30]} 19. Qe2 {[%emt 0:01:30]} Rfc8 {[%emt 0:08:30]} 20. Be3 {[%emt 0:03:30]} Qc4 {[%emt 0:06:30]} 21. Qg4 {[%emt 0:02:30]} Ng6 {[%emt 0:17:30]} 22. Qg3 {[%emt 0:04:30]} Qc7 {[%emt 0:04:30]} 23. Rac1 {[%emt 0:06:08]} Kh7 {[%emt 0:14:20]} 24. f5 {[%emt 0:10:15]} Nxe5 {[%emt 0:00:43]} 25. f6 {[%emt 0:01:31]} Ng6 {[%emt 0:07:33]} 26. Qh3 {[%emt 0:00:23]} Qd8 {[%emt 0:05:47]} 27. fxg7 {[%emt 0:01:21]} Kg8 {[%emt 0:01:11]} 28. Rcd1 {[%emt 0:00:46]} Qh4 {[%emt 0:04:32]} 29. Qd7 {[%emt 0:00:55]} Ne5 {[%emt 0:00:45]} 30. Qxb7 {[%emt 0:00:23]} 1-0

[Event "4th Baskent University Open 2019"]
[Site "Ankara"]
[Date "2019.06.20"]
[Round "6"]
[White "Rzayev, Askar Aliakbar"]
[Black "Simantsev, Mikhail"]
[Result "1-0"]
[ECO "E12"]
[WhiteElo "2089"]
[BlackElo "2371"]
[Annotator "ChessBase"]
[PlyCount "71"]
[EventDate "2019.06.18"]
[EventType "swiss"]
[EventCountry "TUR"]
[SourceTitle "playchess.com"]
[Source "ChessBase"]
[SourceQuality "1"]
[TimeControl "5400+30"]

1. d4 {[%emt 0:00:30]} Nf6 {[%emt 0:10:30]} 2. c4 {[%emt 0:00:00]} e6 {[%emt 0:03:30]} 3. Nf3 {[%emt 0:01:00]} b6 {[%emt 0:03:30]} 4. a3 {[%emt 0:00:30]} Bb7 {[%emt 0:04:30]} 5. Nc3 {[%emt 0:00:00]} d5 {[%emt 0:00:30]} 6. Bg5 {[%emt 0:00:00]} Be7 {[%emt 0:01:30]} 7. Qa4+ {[%emt 0:00:30]} Bc6 {[%emt 0:11:30]} 8. Qb3 {[%emt 0:02:30]} dxc4 {[%emt 0:00:30]} 9. Qxc4 {[%emt 0:00:30]} O-O {[%emt 0:00:30]} 10. e3 {[%emt 0:06:30]} Bb7 {[%emt 0:04:30]} 11. Be2 {[%emt 0:04:30]} Nbd7 {[%emt 0:09:30]} 12. Rd1 {[%emt 0:09:30]} a6 {[%emt 0:04:30]} 13. a4 {[%emt 0:05:30]} Rc8 {[%emt 0:02:30]} 14. b4 {[%emt 0:05:30]} h6 {[%emt 0:08:30]} 15. Bh4 {[%emt 0:00:30]} c5 {[%emt 0:08:30]} 16. dxc5 {[%emt 0:03:30]} bxc5 {[%emt 0:00:30]} 17. b5 {[%emt 0:00:30]} Qa5 {[%emt 0:01:30]} 18. Rxd7 {[%emt 0:24:30]} Nxd7 {[%emt 0:01:30]} 19. Bxe7 {[%emt 0:01:30]} Rfe8 {[%emt 0:01:30]} 20. Bh4 {[%emt 0:01:30]} Nb6 {[%emt 0:01:07]} 21. Qb3 {[%emt 0:03:30]} Bd5 {[%emt 0:03:47]} 22. Qa3 {[%emt 0:02:30]} g5 {[%emt 0:03:43]} 23. Bg3 {[%emt 0:01:30]} Nxa4 {[%emt 0:00:17]} 24. O-O {[%emt 0:02:30]} Qxc3 {[%emt 0:01:29]} 25. Qxa4 {[%emt 0:00:00]} Qb2 {[%emt 0:01:08]} 26. Re1 {[%emt 0:01:00]} axb5 {[%emt 0:03:01]} 27. Qxb5 {[%emt 0:00:30]} Qxb5 {[%emt 0:02:08]} 28. Bxb5 {[%emt 0:00:30]} Re7 {[%emt 0:00:00]} 29. h4 {[%emt 0:03:30]} Bxf3 {[%emt 0:05:27]} 30. gxf3 {[%emt 0:00:30]} c4 {[%emt 0:00:05]} 31. Rc1 {[%emt 0:00:30]} c3 {[%emt 0:00:39]} 32. hxg5 {[%emt 0:00:30]} Ra7 {[%emt 0:00:44]} 33. Bd3 {[%emt 0:02:55]} hxg5 {[%emt 0:00:45]} 34. Be5 {[%emt 0:00:36]} Ra2 {[%emt 0:02:25]} 35. Bf6 {[%emt 0:01:01]} c2 {[%emt 0:00:40]} 36. Kg2 {[%emt 0:00:11]} 1-0

[Event "4th Baskent University Open 2019"]
[Site "Ankara"]
[Date "2019.06.20"]
[Round "6"]
[White "Erdogan, Anil Berk"]
[Black "Can, Isik"]
[Result "0-1"]
[ECO "B03"]
[WhiteElo "2087"]
[BlackElo "2379"]
[Annotator "ChessBase"]
[PlyCount "86"]
[EventDate "2019.06.18"]
[EventType "swiss"]
[EventCountry "TUR"]
[SourceTitle "playchess.com"]
[Source "ChessBase"]
[SourceQuality "1"]
[TimeControl "5400+30"]

1. e4 {[%emt 0:01:30]} Nf6 {[%emt 0:02:30]} 2. e5 {[%emt 0:02:30]} Nd5 {[%emt 0:00:30]} 3. d4 {[%emt 0:01:30]} d6 {[%emt 0:00:30]} 4. c4 {[%emt 0:00:30]} Nb6 {[%emt 0:00:30]} 5. exd6 {[%emt 0:00:30]} cxd6 {[%emt 0:00:00]} 6. Be3 {[%emt 0:00:00]} g6 {[%emt 0:00:00]} 7. Nc3 {[%emt 0:01:00]} Bg7 {[%emt 0:00:00]} 8. Rc1 {[%emt 0:01:30]} O-O {[%emt 0:00:00]} 9. b3 {[%emt 0:13:30]} Bf5 {[%emt 0:00:30]} 10. Bd3 {[%emt 0:01:30]} Bxd3 {[%emt 0:12:30]} 11. Qxd3 {[%emt 0:00:30]} Nc6 {[%emt 0:04:30]} 12. Nf3 {[%emt 0:15:30]} d5 {[%emt 0:08:30]} 13. c5 {[%emt 0:01:30]} Nc8 {[%emt 0:02:30]} 14. O-O {[%emt 0:11:30]} e6 {[%emt 0:01:30]} 15. a3 {[%emt 0:03:30]} N8e7 {[%emt 0:02:30]} 16. Rfd1 {[%emt 0:03:30]} h6 {[%emt 0:07:30]} 17. b4 {[%emt 0:04:30]} g5 {[%emt 0:05:30]} 18. b5 Na5 {[%emt 0:00:30]} 19. Nd2 {[%emt 0:15:00]} Nf5 {[%emt 0:13:30]} 20. Ne2 {[%emt 0:04:31]} b6 {[%emt 0:00:30]} 21. Ng3 {[%emt 0:08:59]} bxc5 {[%emt 0:03:30]} 22. Rxc5 {[%emt 0:03:29]} Nd6 {[%emt 0:00:30]} 23. Nh5 {[%emt 0:01:02]} Bh8 {[%emt 0:01:30]} 24. f4 {[%emt 0:02:06]} f5 {[%emt 0:05:30]} 25. g4 {[%emt 0:01:34]} Ne4 {[%emt 0:03:30]} 26. Nxe4 {[%emt 0:01:01]} fxe4 {[%emt 0:00:30]} 27. Qc3 {[%emt 0:00:29]} Nc4 {[%emt 0:00:30]} 28. Kh1 {[%emt 0:00:36]} Nxe3 {[%emt 0:00:30]} 29. Qxe3 {[%emt 0:00:30]} gxf4 {[%emt 0:02:30]} 30. Nxf4 {[%emt 0:00:21]} Qg5 {[%emt 0:00:00]} 31. Ng2 {[%emt 0:00:50]} Rf3 {[%emt 0:01:00]} 32. Qc1 {[%emt 0:00:28]} Raf8 {[%emt 0:00:30]} 33. Rc8 {[%emt 0:00:27]} Qxc1 {[%emt 0:00:30]} 34. Rxf8+ {[%emt 0:00:03]} Rxf8 {[%emt 0:00:30]} 35. Rxc1 {[%emt 0:00:30]} Bxd4 {[%emt 0:00:00]} 36. h4 {[%emt 0:00:40]} e3 {[%emt 0:01:00]} 37. Re1 {[%emt 0:00:50]} Rf3 {[%emt 0:00:30]} 38. Kh2 {[%emt 0:00:34]} Be5+ {[%emt 0:00:00]} 39. Kg1 {[%emt 0:00:34]} d4 {[%emt 0:00:00]} 40. a4 {[%emt 0:00:21]} d3 {[%emt 0:00:30]} 41. Nxe3 {[%emt 0:00:31]} Bd4 {[%emt 0:00:30]} 42. Kg2 {[%emt 0:00:30]} Rxe3 {[%emt 0:00:00]} 43. Rd1 {[%emt 0:00:00]} e5 {[%emt 0:00:00]} 0-1

[Event "4th Baskent University Open 2019"]
[Site "Ankara"]
[Date "2019.06.20"]
[Round "6"]
[White "Gulsoy, Mustafa Alpago"]
[Black "Koksal, Ege"]
[Result "0-1"]
[ECO "C44"]
[WhiteElo "2055"]
[BlackElo "2363"]
[Annotator "ChessBase"]
[PlyCount "114"]
[EventDate "2019.06.18"]
[EventType "swiss"]
[EventCountry "TUR"]
[SourceTitle "playchess.com"]
[Source "ChessBase"]
[SourceQuality "1"]
[TimeControl "5400+30"]

1. e4 {[%emt 0:00:30]} e5 {[%emt 0:06:30]} 2. Nf3 {[%emt 0:00:00]} Nc6 {[%emt 0:00:30]} 3. d4 {[%emt 0:00:00]} exd4 {[%emt 0:00:30]} 4. Bc4 {[%emt 0:00:30]} Bc5 {[%emt 0:02:30]} 5. Ng5 {[%emt 0:00:30]} Nh6 {[%emt 0:04:30]} 6. Nxf7 {[%emt 0:04:30]} Nxf7 {[%emt 0:00:30]} 7. Bxf7+ {[%emt 0:00:30]} Kxf7 {[%emt 0:00:30]} 8. Qh5+ {[%emt 0:00:30]} Kf8 {[%emt 0:00:30]} 9. Qxc5+ {[%emt 0:00:30]} Qe7 {[%emt 0:00:30]} 10. Qf5+ {[%emt 0:00:30]} Qf7 {[%emt 0:00:30]} 11. Qf4 {[%emt 0:00:30]} d6 {[%emt 0:00:30]} 12. O-O {[%emt 0:00:30]} Be6 {[%emt 0:00:30]} 13. Rd1 {[%emt 0:02:30]} h6 {[%emt 0:07:30]} 14. a3 {[%emt 0:01:30]} d5 {[%emt 0:02:30]} 15. Qxf7+ {[%emt 0:17:30]} Kxf7 {[%emt 0:00:30]} 16. exd5 {[%emt 0:00:00]} Bxd5 {[%emt 0:00:00]} 17. Bf4 {[%emt 0:00:00]} Rac8 {[%emt 0:01:00]} 18. Nd2 {[%emt 0:06:30]} Rhe8 {[%emt 0:00:30]} 19. Re1 {[%emt 0:02:30]} Re7 {[%emt 0:02:30]} 20. f3 {[%emt 0:05:30]} Rd7 {[%emt 0:00:30]} 21. b4 {[%emt 0:01:30]} Ne7 {[%emt 0:04:30]} 22. Nb3 {[%emt 0:02:30]} Bxb3 {[%emt 0:15:30]} 23. cxb3 {[%emt 0:00:30]} b6 {[%emt 0:00:30]} 24. Rac1 {[%emt 0:00:30]} c5 {[%emt 0:00:30]} 25. Rc4 {[%emt 0:03:30]} Ng6 {[%emt 0:06:30]} 26. Bg3 {[%emt 0:03:30]} Rd5 {[%emt 0:01:30]} 27. Rec1 {[%emt 0:04:30]} Ke6 {[%emt 0:01:30]} 28. bxc5 {[%emt 0:05:30]} Rdxc5 {[%emt 0:01:30]} 29. Bf2 {[%emt 0:01:30]} Rxc4 {[%emt 0:17:30]} 30. bxc4 {[%emt 0:01:30]} d3 {[%emt 0:01:30]} 31. Re1+ {[%emt 0:04:30]} Kf7 {[%emt 0:01:31]} 32. Bg3 {[%emt 0:05:30]} Rxc4 {[%emt 0:00:47]} 33. Rd1 {[%emt 0:00:00]} Rc3 {[%emt 0:00:27]} 34. a4 {[%emt 0:00:00]} Ne7 {[%emt 0:02:50]} 35. Be5 {[%emt 0:06:30]} Ra3 {[%emt 0:03:34]} 36. a5 {[%emt 0:00:30]} Rxa5 {[%emt 0:00:40]} 37. f4 {[%emt 0:00:30]} Nc6 {[%emt 0:00:57]} 38. Rxd3 {[%emt 0:01:30]} Nxe5 {[%emt 0:00:09]} 39. fxe5 {[%emt 0:00:00]} Rxe5 {[%emt 0:00:07]} 40. h4 {[%emt 0:01:33]} a5 {[%emt 0:00:24]} 41. Rd7+ {[%emt 0:01:07]} Kg8 {[%emt 0:00:31]} 42. Ra7 {[%emt 0:00:33]} Re4 {[%emt 0:00:16]} 43. Ra6 {[%emt 0:01:07]} Rb4 {[%emt 0:00:33]} 44. Kf2 {[%emt 0:00:05]} a4 {[%emt 0:00:00]} 45. Kf3 {[%emt 0:00:47]} b5 {[%emt 0:00:32]} 46. Ra5 {[%emt 0:01:17]} Kf7 {[%emt 0:01:09]} 47. g4 {[%emt 0:00:14]} Kf6 {[%emt 0:00:27]} 48. Ra7 {[%emt 0:01:15]} Ke5 {[%emt 0:02:33]} 49. Rxg7 {[%emt 0:01:48]} a3 {[%emt 0:00:01]} 50. Re7+ {[%emt 0:00:14]} Kd4 {[%emt 0:01:30]} 51. Re4+ {[%emt 0:00:11]} Kc3 {[%emt 0:00:42]} 52. Re3+ {[%emt 0:00:27]} Kb2 {[%emt 0:00:05]} 53. Re2+ {[%emt 0:00:12]} Kb3 {[%emt 0:00:41]} 54. Re3+ {[%emt 0:00:06]} Ka4 {[%emt 0:00:00]} 55. g5 {[%emt 0:00:58]} hxg5 {[%emt 0:00:26]} 56. hxg5 {[%emt 0:00:00]} a2 {[%emt 0:00:08]} 57. Re8 {[%emt 0:00:17]} Ka3 {[%emt 0:00:38]} 0-1